bitfinex/quotes_BTCUSD_20240721
["timestamp","ask_amount","ask_price","bid_price","bid_amount"]
[1721581568755,0.15717574,67551.0,67545.0,0.12298845]
[1721581568984,0.15717574,67551.0,67546.0,0.12298845]
[1721581568985,0.1,67550.0,67546.0,0.12298845]
[1721581569176,0.15438174,67549.0,67547.0,0.12298845]
[1721581569413,0.15438174,67549.0,67543.0,0.296107]
[1721581569414,0.1,67548.0,67543.0,0.296107]
[1721581569646,0.296051,67556.0,67534.0,0.05123938]
[1721581569647,0.1449,67566.0,67544.0,0.26653959]
[1721581569856,0.1449,67566.0,67554.0,0.148028]
[1721581569857,0.1580826,67565.0,67554.0,0.148028]
[1721581570063,0.1580826,67565.0,67550.0,0.296074]
[1721581570064,0.4540936,67565.0,67555.0,0.12297877]
[1721581570289,0.14801,67563.0,67556.0,0.12297877]
[1721581570502,0.15808249,67562.0,67557.0,0.12297877]
[1721581570704,0.15438174,67562.0,67556.0,0.296049]
[1721581570906,0.00370072,67563.0,67561.0,0.296028]
[1721581571113,0.15438174,67563.0,67562.0,0.41897938]
[1721581571320,0.02001429,67567.0,67562.0,0.41897938]
[1721581571321,0.01631381,67567.0,67562.0,0.12295538]
[1721581571522,0.15438174,67566.0,67563.0,0.12295538]
[1721581571719,0.15438174,67566.0,67564.0,0.148007]
[1721581571935,0.147987,67574.0,67563.0,0.14789737]
[1721581572128,0.00370032,67575.0,67564.0,0.4189624]
[1721581572129,0.00370005,67575.0,67564.0,0.4189624]
[1721581572304,0.00370005,67575.0,67560.0,0.1406]
[1721581572305,0.00369969,67581.0,67570.0,0.295987]
[1721581572501,0.00369969,67581.0,67572.0,0.147989]
[1721581572723,0.00369969,67581.0,67573.0,0.12293205]
[1721581572929,0.00369969,67581.0,67573.0,0.147987]
[1721581573136,0.00369969,67581.0,67571.0,0.295984]
[1721581573137,0.00369969,67581.0,67574.0,0.147983]
[1721581573340,0.01547381,67586.0,67573.0,0.21777479]
[1721581573555,0.01547381,67586.0,67585.0,0.443884]
[1721581573718,0.01547381,67586.0,67574.0,0.12292784]
[1721581573719,0.00837,67590.0,67574.0,0.12292784]
[1721581573937,0.00837,67590.0,67589.0,0.147953]
[1721581574164,0.00837,67590.0,67579.0,0.295947]
[1721581574411,0.00837,67590.0,67573.0,0.68087305]
[1721581574412,0.00837,67590.0,67580.0,0.26350395]
[1721581574633,0.00837,67590.0,67581.0,0.12290395]
[1721581574634,0.00144533,67589.0,67581.0,0.12290395]
[1721581574862,0.00144533,67589.0,67573.0,0.4753]
[1721581574863,0.37310079,67585.0,67573.0,0.4753]
[1721581575120,0.07717479,67576.0,67573.0,0.4753]
[1721581575330,0.15582707,67575.0,67573.0,0.4753]
[1721581575589,0.147985,67574.0,67573.0,0.4753]
[1721581575837,0.2148,67579.0,67573.0,0.4753]
[1721581576073,0.25582707,67578.0,67573.0,0.4753]
[1721581577026,0.147985,67574.0,67573.0,0.4753]
[1721581577253,0.30236674,67574.0,67573.0,0.4753]
[1721581577469,0.15438174,67574.0,67573.0,0.4753]
[1721581577692,0.1,67578.0,67573.0,0.4753]
[1721581577913,0.15438174,67577.0,67573.0,0.4753]
[1721581578399,0.1,67578.0,67573.0,0.4753]
[1721581578646,0.1,67578.0,67566.0,1.073904]
[1721581578647,0.002,67609.0,67575.0,0.07717479]
[1721581578889,0.002,67609.0,67606.0,0.586746]
[1721581579115,0.002,67609.0,67606.0,1.00544861]
[1721581579116,0.00837,67607.0,67606.0,1.00544861]
[1721581579374,0.00837,67607.0,67606.0,0.12287161]
[1721581579600,0.00837,67607.0,67606.0,0.147915]
[1721581579822,0.00837,67607.0,67606.0,0.56661151]
[1721581580050,0.00837,67607.0,67606.0,0.86244251]
[1721581580274,0.00837,67607.0,67606.0,0.56661151]
[1721581580785,0.00837,67607.0,67606.0,0.86244251]
[1721581581299,0.00837,67607.0,67606.0,0.56661151]
[1721581581531,0.00837,67607.0,67606.0,0.443746]
[1721581581766,0.00837,67607.0,67606.0,0.56660797]
[1721581582254,0.00837,67607.0,67606.0,0.86243897]
[1721581582485,0.002,67609.0,67608.0,0.739555]
[1721581582703,0.002,67609.0,67608.0,0.86241697]
[1721581583374,0.002,67609.0,67608.0,1.15823897]
[1721581584044,0.002,67609.0,67608.0,1.29993897]
[1721581584275,0.00837,67614.0,67610.0,0.739535]
[1721581584487,0.00837,67614.0,67610.0,1.60839077]
[1721581584889,0.00837,67614.0,67610.0,2.00420477]
[1721581585091,0.01039,67619.0,67614.0,0.493694]
[1721581585317,0.01039,67619.0,67614.0,1.01671777]
[1721581585733,0.01039,67619.0,67614.0,1.36251377]
[1721581586710,0.01039,67619.0,67614.0,1.85000977]
[1721581587727,0.01039,67619.0,67615.0,1.431064]
[1721581587947,0.01039,67619.0,67615.0,1.70825324]
[1721581588168,0.01039,67619.0,67618.0,1.491726]
[1721581588374,1e-06,67620.0,67619.0,1.290709]
[1721581588578,1e-06,67620.0,67619.0,2.03837224]
[1721581588784,1e-06,67620.0,67619.0,2.09632037]
[1721581588990,1e-06,67620.0,67619.0,2.39209437]
[1721581589197,1e-06,67620.0,67619.0,2.44306878]
[1721581589405,0.01039,67629.0,67628.0,1.430807]
[1721581589610,0.01039,67629.0,67628.0,2.18749624]
[1721581589826,0.01039,67629.0,67628.0,2.22244437]
[1721581590053,0.01039,67629.0,67628.0,2.51817937]
[1721581590435,0.01039,67629.0,67628.0,2.18749624]
[1721581590652,0.01039,67629.0,67628.0,2.187472]
[1721581590862,0.01039,67629.0,67628.0,1.20058162]
[1721581591086,0.01039,67629.0,67628.0,1.03541874]
[1721581591495,0.01039,67629.0,67628.0,0.147867]
[1721581591703,0.01039,67629.0,67626.0,0.147871]
[1721581591912,0.01039,67629.0,67621.0,0.15438174]
[1721581592347,0.01039,67629.0,67616.0,0.1]
[1721581592348,0.01039,67629.0,67612.0,0.0625]
[1721581592349,0.147873,67626.0,67612.0,0.0625]
[1721581592551,0.147873,67626.0,67600.0,0.10096197]
[1721581592552,0.07717479,67621.0,67601.0,0.0792]
[1721581592758,0.07996879,67620.0,67602.0,0.27722077]
[1721581592963,0.002794,67620.0,67603.0,0.295843]
[1721581593172,0.147896,67615.0,67605.0,0.147917]
[1721581593379,0.295776,67619.0,67601.0,0.0792]
[1721581593380,0.147901,67613.0,67601.0,0.0792]
[1721581593617,0.147909,67610.0,67599.0,0.14793]
[1721581593833,0.002794,67609.0,67591.0,0.0625]
[1721581594036,0.002794,67609.0,67584.0,0.15438174]
[1721581594037,0.15438174,67609.0,67584.0,0.15438174]
[1721581594241,0.002794,67608.0,67591.0,0.295897]
[1721581594454,0.002794,67608.0,67584.0,0.15438174]
[1721581594455,0.147921,67604.0,67584.0,0.15438174]
[1721581594660,0.002794,67603.0,67593.0,0.147944]
[1721581594867,0.002794,67603.0,67591.0,0.295897]
[1721581595076,0.002794,67605.0,67589.0,0.295906]
[1721581595266,0.147917,67606.0,67585.0,0.295922]
[1721581595498,0.002794,67605.0,67595.0,0.147939]
[1721581595708,0.150713,67605.0,67593.0,0.147943]
[1721581595988,0.150713,67605.0,67594.0,0.147941]
[1721581596197,0.002794,67605.0,67595.0,0.147938]
[1721581596401,0.002794,67605.0,67590.0,0.295901]
[1721581596628,0.29583,67607.0,67591.0,0.147946]
[1721581596629,0.147925,67602.0,67591.0,0.147946]
[1721581596846,0.295841,67604.0,67578.0,0.059277]
[1721581596847,0.0764,67596.0,67578.0,0.059277]
[1721581597061,0.0764,67596.0,67579.0,0.27727436]
[1721581597295,0.0764,67596.0,67590.0,0.295898]
[1721581597296,0.002794,67595.0,67590.0,0.295898]
[1721581597502,0.15438174,67601.0,67592.0,0.147945]
[1721581597709,0.15438174,67601.0,67588.0,0.295909]
[1721581597919,0.15438174,67601.0,67591.0,0.147947]
[1721581598123,0.357413,67611.0,67588.0,0.295909]
[1721581598124,0.0616,67611.0,67592.0,0.00295895]
[1721581598346,0.0616,67611.0,67588.0,0.07717479]
[1721581598347,0.15438174,67610.0,67602.0,0.147923]
[1721581598554,0.0616,67611.0,67592.0,0.15438174]
[1721581598555,0.1,67609.0,67592.0,0.15438174]
[1721581598789,0.0616,67611.0,67596.0,0.295874]
[1721581599031,0.0616,67611.0,67593.0,0.28005593]
[1721581599032,0.0616,67611.0,67606.0,0.29583]
[1721581599247,0.0616,67611.0,67594.0,0.144]
[1721581599248,0.295765,67622.0,67611.0,0.147904]
[1721581599249,0.147882,67622.0,67611.0,0.147904]
[1721581599457,0.01039,67629.0,67610.0,0.147905]
[1721581599458,0.30226574,67621.0,67610.0,0.147905]
[1721581599684,0.30226574,67621.0,67605.0,0.295833]
[1721581599685,0.295773,67620.0,67596.0,0.45025274]
[1721581599893,0.147912,67608.0,67597.0,0.27080152]
[1721581600104,0.15438174,67619.0,67598.0,0.12286752]
[1721581600318,0.15438174,67619.0,67595.0,0.295878]
[1721581600319,0.147896,67615.0,67599.0,0.12286752]
[1721581600534,0.147896,67615.0,67600.0,0.12286752]
[1721581600535,0.15438174,67614.0,67600.0,0.12286752]
[1721581600745,0.15438174,67614.0,67601.0,0.12286752]
[1721581600746,0.147906,67611.0,67601.0,0.12286752]
[1721581600953,0.147906,67611.0,67600.0,0.147928]
[1721581601161,0.147909,67609.0,67601.0,0.12287116]
[1721581601377,0.15438174,67614.0,67588.0,0.11756903]
[1721581601378,0.0621,67608.0,67588.0,0.11756903]
[1721581601594,0.14792,67604.0,67594.0,0.12566689]
[1721581601806,0.0621,67608.0,67595.0,0.12287289]
[1721581602022,0.357923,67608.0,67596.0,0.12566689]
[1721581602233,0.0621,67608.0,67597.0,0.12287289]
[1721581602435,0.147921,67604.0,67590.0,0.002794]
[1721581602652,0.147921,67604.0,67591.0,0.12288093]
[1721581602864,0.0621,67608.0,67601.0,0.147925]
[1721581603076,0.0621,67608.0,67590.0,0.07717479]
[1721581603077,0.0621,67608.0,67600.0,0.147927]
[1721581603291,0.0621,67608.0,67593.0,0.147943]
[1721581603292,0.295827,67607.0,67593.0,0.147943]
[1721581603506,0.0621,67608.0,67594.0,0.12567522]
[1721581603710,0.0621,67608.0,67595.0,0.12288122]
[1721581603916,0.210012,67608.0,67598.0,0.147932]
[1721581604120,0.210012,67608.0,67599.0,0.12288122]
[1721581604303,0.210012,67608.0,67598.0,0.147932]
[1721581604502,0.210012,67608.0,67599.0,0.12288075]
[1721581604673,0.210012,67608.0,67600.0,0.12288075]
[1721581604674,0.0621,67608.0,67600.0,0.12288075]
[1721581604890,0.0621,67608.0,67601.0,0.12288075]
[1721581605092,0.0621,67608.0,67592.0,0.147945]
[1721581605093,0.147925,67602.0,67592.0,0.147945]
[1721581605313,0.147918,67605.0,67595.0,0.147939]
[1721581605462,0.0621,67608.0,67596.0,0.12567262]
[1721581605665,0.0621,67608.0,67597.0,0.2708148]
[1721581605870,0.147919,67605.0,67598.0,0.1228798]
[1721581606083,0.210012,67608.0,67599.0,0.1228798]
[1721581606291,0.0621,67608.0,67600.0,0.1228798]
[1721581606493,0.210012,67608.0,67601.0,0.1228798]
[1721581606701,0.210012,67608.0,67602.0,0.1228798]
[1721581606897,0.210012,67608.0,67598.0,0.147932]
[1721581606898,0.147914,67607.0,67603.0,0.1228798]
[1721581607114,0.147914,67607.0,67592.0,0.295891]
[1721581607115,0.357925,67608.0,67596.0,0.002794]
[1721581607322,0.357925,67608.0,67592.0,0.295891]
[1721581607323,0.14792,67604.0,67597.0,0.12287766]
[1721581607690,0.14792,67604.0,67598.0,0.12287766]
[1721581607691,0.147921,67604.0,67598.0,0.12287766]
[1721581607859,0.147921,67604.0,67590.0,0.34698184]
[1721581607860,0.0621,67608.0,67599.0,0.12287766]
[1721581608064,0.21648174,67608.0,67600.0,0.27080366]
[1721581608271,0.065,67615.0,67610.0,0.147906]
[1721581608471,0.065,67615.0,67612.0,0.1479]
[1721581608681,0.065,67615.0,67613.0,0.12287766]
[1721581608853,0.065,67615.0,67614.0,0.12286341]
[1721581609685,0.295764,67622.0,67614.0,0.12286341]
[1721581609686,0.065,67622.0,67614.0,0.12286341]
[1721581609887,0.065,67622.0,67615.0,0.12286341]
[1721581610088,0.0829,67624.0,67615.0,0.12286341]
[1721581610089,0.0829,67624.0,67616.0,0.12286341]
[1721581610293,0.065,67628.0,67618.0,0.295778]
[1721581610467,0.065,67628.0,67620.0,0.147884]
[1721581610686,0.065,67628.0,67621.0,0.12286341]
[1721581610931,0.065,67628.0,67622.0,0.12286341]
[1721581611120,0.065,67628.0,67623.0,0.12284659]
[1721581611121,0.26076774,67627.0,67623.0,0.12284659]
[1721581611310,0.26076774,67627.0,67606.0,0.0510615]
[1721581611311,0.05,67623.0,67606.0,0.0510615]
[1721581611514,0.07717479,67625.0,67601.0,0.0510615]
[1721581611515,0.065,67607.0,67601.0,0.0510615]
[1721581611754,0.065,67607.0,67600.0,0.147928]
[1721581611918,0.065,67607.0,67595.0,0.002794]
[1721581611919,0.212913,67607.0,67601.0,0.12286597]
[1721581612107,0.212913,67607.0,67595.0,0.002794]
[1721581612108,0.065,67607.0,67602.0,0.12286597]
[1721581612308,0.295793,67615.0,67603.0,0.12286595]
[1721581612529,0.15438174,67614.0,67604.0,0.12565995]
[1721581612694,0.15438174,67614.0,67605.0,0.12286595]
[1721581612695,0.45018074,67614.0,67605.0,0.12286595]
[1721581612900,0.29581,67611.0,67606.0,0.12565995]
[1721581613100,0.295802,67613.0,67607.0,0.12286595]
[1721581613300,0.23081,67609.0,67608.0,0.12286595]
[1721581613509,0.23081,67609.0,67595.0,0.002794]
[1721581613510,0.147921,67604.0,67595.0,0.002794]
[1721581613804,0.23728174,67609.0,67596.0,0.12287692]
[1721581613805,0.15438174,67603.0,67596.0,0.12287692]
[1721581614004,0.15438174,67603.0,67597.0,0.12287692]
[1721581614205,0.15438174,67603.0,67584.0,0.0601]
[1721581614206,0.15438174,67603.0,67598.0,0.12287692]
[1721581614416,0.15438174,67603.0,67587.0,0.002794]
[1721581614609,0.15438174,67603.0,67585.0,0.34698497]
[1721581614610,0.147932,67599.0,67589.0,0.147952]
[1721581614811,0.147934,67598.0,67590.0,0.002794]
[1721581614965,0.29586,67600.0,67591.0,0.12288864]
[1721581615305,0.147934,67598.0,67592.0,0.12288864]
[1721581615429,0.147934,67598.0,67593.0,0.12288864]
[1721581615430,0.147936,67597.0,67593.0,0.12288864]
[1721581615635,0.065,67598.0,67594.0,0.12288864]
[1721581615833,0.065,67598.0,67588.0,0.147955]
[1721581615834,0.065,67598.0,67595.0,0.12288864]
[1721581616036,0.065,67598.0,67588.0,0.147955]
[1721581616037,0.212934,67598.0,67588.0,0.147955]
[1721581616250,0.212934,67598.0,67589.0,0.12289688]
[1721581616451,0.212934,67598.0,67590.0,0.12569088]
[1721581616653,0.212934,67598.0,67591.0,0.12289688]
[1721581616859,0.212934,67598.0,67592.0,0.12289688]
[1721581617124,0.212934,67598.0,67593.0,0.12289688]
[1721581617326,0.147935,67597.0,67594.0,0.12289688]
[1721581617529,0.0802,67594.0,67580.0,0.05108544]
[1721581617733,0.147952,67590.0,67581.0,0.1256893]
[1721581617944,0.147948,67592.0,67582.0,0.147967]
[1721581618148,0.147948,67592.0,67578.0,0.35835]
[1721581618149,0.147949,67591.0,67583.0,0.12569445]
[1721581618352,0.147949,67591.0,67584.0,0.12290045]
[1721581618526,0.147949,67591.0,67585.0,0.12290045]
[1721581618732,0.147949,67591.0,67586.0,0.12290045]
[1721581618934,0.147949,67591.0,67587.0,0.12290045]
[1721581619139,0.147949,67591.0,67588.0,0.12290045]
[1721581619140,0.443859,67589.0,67588.0,0.12290045]
[1721581619343,0.443859,67589.0,67573.0,0.05388526]
[1721581619344,0.295922,67586.0,67573.0,0.05388526]
[1721581619546,0.295922,67586.0,67574.0,0.27089611]
[1721581619547,0.147965,67584.0,67574.0,0.27089611]
[1721581619698,0.295922,67586.0,67571.0,0.11349126]
[1721581619699,0.147966,67583.0,67575.0,0.12570511]
[1721581619935,0.147966,67583.0,67576.0,0.12291111]
[1721581620320,0.147968,67582.0,67577.0,0.12291111]
[1721581620527,0.295932,67583.0,67578.0,0.12291111]
[1721581620740,0.295932,67583.0,67571.0,0.07249644]
[1721581620741,0.15438174,67584.0,67579.0,0.12291111]
[1721581620963,0.15438174,67584.0,67579.0,0.12291965]
[1721581621173,0.15438174,67584.0,67580.0,0.12291965]
[1721581621377,0.15438174,67584.0,67577.0,0.147979]
[1721581621378,0.2647,67605.0,67581.0,0.12291965]
[1721581621597,0.02815565,67622.0,67571.0,0.0624]
[1721581621598,0.147966,67583.0,67582.0,0.12571365]
[1721581621812,0.59827974,67583.0,67582.0,0.12291965]
[1721581622033,0.30234774,67583.0,67582.0,0.12291965]
[1721581622264,0.147965,67584.0,67582.0,0.12291965]
[1721581622477,0.15438174,67585.0,67583.0,0.12291965]
[1721581622693,0.15438174,67585.0,67584.0,0.12291965]
[1721581622694,0.30234374,67585.0,67584.0,0.12291965]
[1721581623103,0.01452,67593.0,67584.0,0.12291965]
[1721581623104,0.147944,67593.0,67585.0,0.002794]
[1721581623317,0.1,67597.0,67585.0,0.002794]
[1721581623318,0.15438174,67591.0,67588.0,0.147954]
[1721581623535,0.15438174,67591.0,67585.0,0.002794]
[1721581623536,0.1,67597.0,67589.0,0.12291685]
[1721581623758,0.1,67597.0,67590.0,0.12571085]
[1721581623965,0.0802,67601.0,67593.0,0.002794]
[1721581624165,0.23458174,67601.0,67594.0,0.12291685]
[1721581624317,0.23458174,67601.0,67595.0,0.12571085]
[1721581624318,0.1,67600.0,67595.0,0.12571085]
[1721581624523,0.23458174,67601.0,67594.0,0.002794]
[1721581624737,0.23458174,67601.0,67596.0,0.002794]
[1721581624937,0.23458174,67601.0,67594.0,0.147941]
[1721581625096,0.23458174,67601.0,67595.0,0.12289299]
[1721581625300,0.510501,67613.0,67590.0,0.2959]
[1721581625301,0.1466,67612.0,67597.0,0.002794]
[1721581625500,0.1466,67612.0,67599.0,0.358261]
[1721581625501,0.15438174,67611.0,67599.0,0.358261]
[1721581625718,0.15438174,67611.0,67601.0,0.083194]
[1721581625923,0.15438174,67611.0,67606.0,0.147914]
[1721581626174,0.15438174,67611.0,67601.0,0.0804]
[1721581626175,0.0664,67618.0,67607.0,0.1228669]
[1721581626386,0.0664,67618.0,67605.0,0.295834]
[1721581626387,0.15438174,67617.0,67608.0,0.1228669]
[1721581626592,0.15438174,67617.0,67609.0,0.1228669]
[1721581626593,0.147894,67616.0,67609.0,0.1228669]
[1721581626826,0.15438174,67615.0,67610.0,0.12286443]
[1721581627024,0.15438174,67615.0,67607.0,0.147912]
[1721581627231,0.15438174,67615.0,67608.0,0.12286657]
[1721581627434,0.15438174,67615.0,67604.0,0.147919]
[1721581627435,0.147899,67614.0,67604.0,0.147919]
[1721581627641,0.0664,67618.0,67605.0,0.12286864]
[1721581627642,0.18280613,67613.0,67605.0,0.12286864]
[1721581627844,0.18280613,67613.0,67601.0,0.002794]
[1721581627845,0.07717479,67610.0,67601.0,0.002794]
[1721581628059,0.147921,67604.0,67601.0,0.002794]
[1721581628289,0.07717479,67610.0,67601.0,0.002794]
[1721581628290,0.147924,67602.0,67601.0,0.002794]
[1721581628532,0.147924,67602.0,67591.0,0.002794]
[1721581628533,0.147934,67598.0,67591.0,0.002794]
[1721581628719,0.295854,67601.0,67593.0,0.002794]
[1721581628720,0.295859,67600.0,67593.0,0.002794]
[1721581628969,0.45024074,67600.0,67591.0,0.002794]
[1721581629116,0.45024074,67600.0,67590.0,0.4753]
[1721581629117,0.15438174,67600.0,67593.0,0.002794]
[1721581629523,0.30231074,67600.0,67591.0,0.002794]
[1721581629976,0.30231074,67600.0,67591.0,0.150742]
[1721581630178,0.147931,67599.0,67591.0,0.002794]
[1721581630354,0.15438174,67599.0,67591.0,0.002794]
[1721581630734,0.147945,67593.0,67591.0,0.002794]
[1721581631335,0.147945,67593.0,67590.0,0.4753]
[1721581631785,0.147945,67593.0,67591.0,0.2]
[1721581632020,1.07859634,67592.0,67591.0,0.2]
[1721581632239,1.03421374,67592.0,67591.0,0.2]
[1721581632445,1.33010674,67592.0,67591.0,0.2]
[1721581632649,1.13421374,67592.0,67591.0,0.2]
[1721581632890,0.33418174,67592.0,67591.0,0.2]
[1721581633101,0.15438174,67592.0,67591.0,0.2]
[1721581633704,0.30232774,67592.0,67591.0,0.2]
[1721581633950,0.59822074,67592.0,67591.0,0.2]
[1721581634124,0.30232774,67592.0,67591.0,0.2]
[1721581634997,0.15438174,67592.0,67591.0,0.2]
[1721581635224,0.30232774,67592.0,67591.0,0.2]
[1721581636078,1.07391374,67592.0,67591.0,0.2]
[1721581636286,1.20721374,67592.0,67591.0,0.2]
[1721581636495,1.50310674,67592.0,67591.0,0.2]
[1721581636704,1.20721374,67592.0,67591.0,0.2]
[1721581637120,1.20721374,67592.0,67591.0,0.19946033]
[1721581637121,0.39448174,67592.0,67591.0,0.19946033]
[1721581637325,0.295828,67607.0,67591.0,0.19946033]
[1721581637326,0.1391,67599.0,67591.0,0.19946033]
[1721581637544,0.1391,67599.0,67592.0,0.002794]
[1721581637545,0.15438174,67596.0,67592.0,0.002794]
[1721581637963,0.1,67595.0,67592.0,0.002794]
[1721581638173,0.15438174,67594.0,67592.0,0.002794]
[1721581638377,0.1,67595.0,67592.0,0.002794]
[1721581638813,0.0782,67605.0,67592.0,0.002794]
[1721581639034,0.15438174,67604.0,67599.0,0.14793]
[1721581639246,0.15438174,67604.0,67600.0,0.002794]
[1721581639456,0.15438174,67604.0,67600.0,0.147928]
[1721581639665,0.15438174,67604.0,67601.0,0.002794]
[1721581639889,0.15438174,67604.0,67597.0,0.002794]
[1721581640304,0.1,67603.0,67596.0,0.002794]
[1721581640509,0.1,67603.0,67592.0,0.002794]
[1721581640510,0.15438174,67602.0,67592.0,0.002794]
[1721581640720,0.1,67603.0,67596.0,0.147936]
[1721581640934,0.1,67609.0,67597.0,0.002794]
[1721581641191,0.0782,67611.0,67600.0,0.147928]
[1721581641192,0.15438174,67608.0,67600.0,0.147928]
[1721581641406,0.295832,67606.0,67601.0,0.002794]
[1721581641638,0.14792,67604.0,67594.0,0.150735]
[1721581641849,0.30230174,67604.0,67594.0,0.150735]
[1721581642067,0.15438174,67604.0,67595.0,0.147939]
[1721581642273,0.1,67607.0,67596.0,0.002794]
[1721581642274,0.147929,67600.0,67596.0,0.002794]
[1721581642479,0.295851,67602.0,67592.0,0.002794]
[1721581642480,0.15438174,67599.0,67592.0,0.002794]
[1721581642912,0.1,67607.0,67592.0,0.002794]
[1721581643116,0.15438174,67606.0,67599.0,0.14793]
[1721581643325,0.1,67605.0,67600.0,0.002794]
[1721581643530,0.1,67605.0,67600.0,0.147928]
[1721581643754,0.1,67605.0,67601.0,0.002794]
[1721581643965,0.247919,67605.0,67595.0,0.147939]
[1721581644180,0.1,67605.0,67596.0,0.150731]
[1721581644384,0.247918,67605.0,67596.0,0.002794]
[1721581645004,0.15438174,67604.0,67596.0,0.002794]
[1721581645226,0.147936,67597.0,67592.0,0.002794]
[1721581645414,0.15438174,67596.0,67591.0,0.20038433]
[1721581645615,0.15438174,67596.0,67592.0,0.002794]
[1721581645806,0.147944,67593.0,67591.0,0.20038433]
[1721581646013,0.443821,67595.0,67591.0,0.20038433]
[1721581646214,0.15438174,67596.0,67591.0,0.20038433]
[1721581646453,0.14794,67595.0,67591.0,0.20038433]
[1721581646872,0.147946,67592.0,67591.0,0.20038433]
[1721581647078,0.59822074,67592.0,67591.0,0.20038433]
[1721581648802,0.60562028,67592.0,67591.0,0.20038433]
[1721581650079,0.90151328,67592.0,67591.0,0.20038433]
[1721581650896,0.60562028,67592.0,67591.0,0.20038433]
[1721581651987,0.90151328,67592.0,67591.0,0.20038433]
[1721581652191,0.60562028,67592.0,67591.0,0.20038433]
[1721581653039,0.00739954,67592.0,67591.0,0.20038433]
[1721581653247,0.00739954,67592.0,67591.0,0.34468433]
[1721581653450,0.00739954,67592.0,67591.0,1.08442633]
[1721581653643,0.1,67605.0,67592.0,0.295892]
[1721581653849,0.15438174,67604.0,67595.0,0.147939]
[1721581654071,0.15438174,67604.0,67596.0,0.002794]
[1721581654072,0.1,67603.0,67596.0,0.002794]
[1721581654456,0.147925,67602.0,67595.0,0.002794]
[1721581654586,0.1,67603.0,67594.0,0.147941]
[1721581654792,0.1,67603.0,67595.0,0.002794]
[1721581655051,0.30879811,67604.0,67595.0,0.0818]
[1721581655052,0.00649637,67604.0,67595.0,0.0818]
[1721581655226,0.00084,67608.0,67596.0,0.065294]
[1721581655434,0.00084,67608.0,67599.0,0.295859]
[1721581655643,0.00084,67608.0,67606.0,0.147915]
[1721581655841,0.00084,67608.0,67607.0,0.002794]
[1721581656017,0.00084,67608.0,67603.0,0.29584]
[1721581656018,0.00084,67608.0,67606.0,0.002794]
[1721581656211,0.00084,67608.0,67605.0,0.147916]
[1721581656484,0.00084,67608.0,67606.0,0.002794]
[1721581656625,0.00084,67608.0,67601.0,0.147925]
[1721581656849,0.15438174,67607.0,67602.0,0.002794]
[1721581657063,0.15438174,67607.0,67598.0,0.147931]
[1721581657268,0.15438174,67607.0,67599.0,0.002794]
[1721581657269,0.30229474,67607.0,67599.0,0.002794]
[1721581657468,0.15438174,67607.0,67599.0,0.150724]
[1721581657665,0.15438174,67607.0,67600.0,0.147928]
[1721581658118,0.15438174,67607.0,67601.0,0.002794]
[1721581658119,0.30229574,67607.0,67601.0,0.002794]
[1721581658320,0.30229574,67607.0,67598.0,0.147932]
[1721581658321,0.30229574,67607.0,67599.0,0.002794]
[1721581658661,0.19865744,67607.0,67599.0,0.150724]
[1721581658798,0.15438174,67607.0,67600.0,0.147928]
[1721581658994,0.15438174,67607.0,67601.0,0.150718]
[1721581659610,0.15438174,67607.0,67601.0,0.002794]
[1721581659832,0.15438174,67607.0,67600.0,0.002794]
[1721581660263,0.00084,67608.0,67600.0,0.002794]
[1721581660465,0.00084,67608.0,67599.0,0.002794]
[1721581660813,0.00084,67608.0,67599.0,0.150723]
[1721581661017,0.148752,67608.0,67599.0,0.150723]
[1721581661188,0.00084,67608.0,67599.0,0.150723]
[1721581661403,0.00084,67608.0,67600.0,0.295857]
[1721581661609,0.00084,67608.0,67597.0,0.295869]
[1721581661610,0.22509179,67606.0,67601.0,0.002794]
[1721581661814,0.59813174,67606.0,67597.0,0.002794]
[1721581662016,0.147918,67605.0,67597.0,0.002794]
[1721581662420,0.15438174,67606.0,67597.0,0.150729]
[1721581662621,0.30229774,67606.0,67597.0,0.150729]
[1721581663233,0.147918,67605.0,67597.0,0.002794]
[1721581663437,0.30229774,67606.0,67597.0,0.150729]
[1721581663649,0.15438174,67606.0,67598.0,0.147932]
[1721581663852,0.15438174,67606.0,67599.0,0.002794]
[1721581664305,0.15438174,67606.0,67599.0,0.150725]
[1721581664454,0.15438174,67606.0,67599.0,0.002794]
[1721581664664,0.45021274,67606.0,67599.0,0.002794]
[1721581664873,0.147919,67605.0,67597.0,0.002794]
[1721581665070,0.147923,67603.0,67597.0,0.002794]
[1721581665298,0.147931,67599.0,67592.0,0.002794]
[1721581665472,0.147929,67600.0,67592.0,0.002794]
[1721581665671,0.30231074,67600.0,67592.0,0.002794]
[1721581665874,0.15438174,67600.0,67591.0,0.26538433]
[1721581666074,0.147933,67598.0,67591.0,0.26538433]
[1721581666281,0.147931,67599.0,67591.0,0.26538433]
[1721581666480,0.15438174,67600.0,67592.0,0.002794]
[1721581666827,0.15438174,67600.0,67593.0,0.002794]
[1721581667040,0.30231074,67600.0,67592.0,0.002794]
[1721581667179,0.30231074,67600.0,67592.0,0.15074]
[1721581667180,0.15438174,67600.0,67592.0,0.15074]
[1721581667392,0.15438174,67600.0,67594.0,0.147941]
[1721581667610,0.15438174,67600.0,67591.0,0.56128033]
[1721581667611,0.15438174,67600.0,67595.0,0.002794]
[1721581668027,0.15438174,67600.0,67594.0,0.002794]
[1721581668406,0.15438174,67600.0,67594.0,0.150736]
[1721581669280,0.359619,67609.0,67594.0,0.150736]
[1721581669281,0.147914,67607.0,67598.0,0.147931]
[1721581669503,0.15522174,67608.0,67602.0,0.147924]
[1721581669728,0.00084,67608.0,67604.0,0.29584]
[1721581669951,0.00084,67608.0,67606.0,0.147915]
[1721581670175,0.00084,67608.0,67607.0,0.002794]
[1721581671220,0.00084,67608.0,67607.0,0.067794]
[1721581671371,0.00084,67608.0,67607.0,0.065]
[1721581671800,0.00084,67608.0,67607.0,0.212913]
[1721581672220,0.00084,67608.0,67607.0,0.50874]
[1721581672675,0.00084,67608.0,67607.0,0.212913]